{"text_format":"1","workbook":"xlsx","n_sheets":34,"sheets":["modProv","Инструкция","Справочная информация","Лог обновления","Титульный","Список ЦСВО (не дифф)","ЦСВО доступ (не дифф)","Список ЦСВО (дифф)","Ссылки на публикации","Комментарии","Проверка","AllSheetsInThisWorkbook","TEHSHEET","et_union_hor","et_union_vert","modInfo","modReestr","modfrmReestr","modUpdTemplMain","REESTR_ORG","modClassifierValidate","modHyp","modList00","modList01","modList02","modList03","modList04","modfrmDateChoose","modComm","modThisWorkbook","REESTR_MO","modfrmReestrMR","modfrmRegion","modfrmCheckUpdates"],"not_rendered":{"charts":0,"images":16,"macros":1,"external_links":0,"defined_names":112,"comments":1,"pivot_tables":0},"unopened":[],"bounds":{"document_bytes":16777216,"sheet_cells":100000,"rows_first":2000,"rows_last":500,"rows_between":2000,"halvings":0,"cell_chars":16384,"cell_head_chars":4096},"cells_cut":0,"cells_raw":0,"read":"whole","date_system":"1900"}

{"sheet":"modProv","index":0,"n_rows":0,"n_cols":0,"rows_kept":0,"cut":false,"hidden":true,"merged":[]}

{"sheet":"Инструкция","index":1,"n_rows":109,"n_cols":27,"rows_kept":109,"cut":false,"hidden":false,"merged":[[79,4,79,23],[86,4,86,7],[83,4,83,23],[85,4,85,23],[84,4,84,23],[86,8,86,23],[2,1,2,2],[4,1,4,24],[6,4,18,23],[20,5,20,12],[20,15,20,23],[21,5,21,12],[21,15,21,23],[34,4,38,23],[39,4,39,23],[40,4,44,23],[45,4,56,23],[22,15,22,22],[69,4,69,23],[81,4,81,23],[70,4,70,23],[57,4,57,6],[57,7,57,23],[58,4,58,6],[58,7,58,23],[59,4,59,6],[59,7,59,23],[71,5,71,23],[72,5,72,23],[73,5,73,23],[74,5,74,23],[78,4,78,23],[106,5,106,18],[108,5,108,23],[60,7,60,23],[87,4,87,6],[87,7,87,23],[88,4,88,6],[88,7,88,23],[75,5,75,23],[89,4,89,6],[89,7,89,23],[90,7,90,23],[104,4,104,23],[82,4,82,23],[80,4,80,23],[76,5,76,23],[77,4,77,23]]}
[null,null,null,null,null,null,null,null,null,null,null,null,null,null,null,null,null,null,null,null,null,null,null,null,null,null," (требуется обновление)"]
[null,null,"JKH.OPEN.INFO.QUARTER.VO"]
[]
[]
[null,{"$f":"\"Информация о наличии (отсутствии) технической возможности подключения к централизованной системе \"&TSphere_full&\", а также о регистрации и ходе реализации заявок о подключении к централизованной системе \"&TSphere_full","v":"Информация о наличии (отсутствии) технической возможности подключения к централизованной системе водоотведения, а также о регистрации и ходе реализации заявок о подключении к централизованной системе водоотведения"}]
[]
[null,null,null,null,"• На рабочем месте должен быть установлен MS Office 2007 SP3, 2010, 2013 с полной версией MS Excel\n\n• Макросы во время работы должны быть включены (!)\n\n• Для корректной работы отчёта требуется выбрать низкий уровень безопасности\n(В меню MS Excel: Параметры Excel | Центр управления безопасностью | Параметры центра управления безопасностью | Параметры макросов | Включить все макросы | ОК)\n\n• Не рекомендуется снимать защиту с листов и каким-либо образом модифицировать защищаемые формулы и расчётные поля, в противном случае, отчёт будет отклонён системой\n\n• При сохранении следует выбирать формат XLSM (Книга Excel)"]
[]
[]
[]
[]
[]
[]
[]
[]
[]
[]
[]
[]
[]
[null,null,null,null,"A"," - не обязательные для заполнения",null,null,null,null,null,null,null,null,"A"," - с формулами и константами"]
[null,null,null,null,"A"," - обязательные для заполнения",null,null,null,null,null,null,null,null,"A"," - с выбором значений до двойному клику,"]
[null,null,null,null,null,null,null,null,null,null,null,null,null,null,null,"либо с возможностью выбора даты из календаря или ручного ввода"]
[]
[]
[]
[]
[]
[]
[]
[]
[]
[]
[]
[null,null,null,null,"Если в предложенном Вам списке необходимая организация, МР/МО отсутствуют, обновите реестры с помощью кнопок\n\nВ результате синхронизации с базой данных список организаций (МР/МО) будет заменён актуальным (механизм синхронизации требует подключения к сети Интернет и основан на использовании протокола HTTPS (TCP порт 443))\n\nЕсли после обновления Вам не удалось найти необходимую организацию в списке, обратитесь к ответственному за поддержание реестра Вашего региона. Информация о региональных органах регулирования доступна по ссылке:"]
[]
[]
[]
[]
[null,null,null,null,"http://www.fstrf.ru/regions/region/showlist"]
[]
[]
[]
[]
[]
[null,null,null,null,"• При сохранении шаблона осуществляется проверка корректности данных, в том числе на наличие значений в ячейках, обязательных для заполнения\n\n• Если какая-то ячейка не удовлетворяет условию проверки, на лист «Проверка» добавляется гиперссылка на данную ячейку и указывается причина ошибки\n\n• В колонке «Статус» для каждого сообщения возможны 2 значения: ошибка и предупреждение\n\n• При наличии сообщений со статусом «Ошибка» шаблон будет отклонён системой и не будет загружен в хранилище данных, сообщения со статусом «Предупреждение» носят информационный характер, и такой шаблон будет принят системой"]
[]
[]
[]
[]
[]
[]
[]
[]
[]
[]
[]
[null,null,null,null,"Web-сайт:",null,null,"http://support.eias.ru/index.php?a=add&catid=5"]
[null,null,null,null,"E-mail:",null,null,"openinfo@eias.ru"]
[null,null,null,null,"Дистрибутивы:",null,null,"http://eias.ru/?page=show_distrs"]
[null,null,null,null,null,null,null,"для устранения ошибок (например, \"Compile error in hidden module\")"]
[]
[]
[]
[]
[]
[]
[]
[]
[null,null,null,null,"Законодательная основа шаблона"]
[null,null,null,null,"Данный шаблон разработан в соответствии с:"]
[null,null,null,null," • ","Постановлением Правительства РФ от 17.01.2013 N 6 \"О стандартах раскрытия информации в сфере водоснабжения и водоотведения\""]
[null,null,null,null,null,"Полный текст Постановления N 6"]
[null,null,null,null,null,{"$f":"\"Подробнее о сфере \"& TSphere_full","v":"Подробнее о сфере водоотведения"}]
[null,null,null,null," • ","Приказом Федеральной службы по тарифам (ФСТ России) от 15 мая 2013 г. № 129 (зарегистрирован Минюстом России № 28876 от 25.06.2013) «Об утверждении форм предоставления информации, подлежащей раскрытию, организациями, осуществляющими горячее водоснабжение, холодное водоснабжение и водоотведение, и органами регулирования тарифов, а также Правил заполнения таких форм»"]
[null,null,null,null,null,"Полный текст Приказа № 129 на сайте ФСТ России"]
[]
[null,null,null,null,"Принципы работы с шаблоном"]
[null,null,null,null,"  Перед началом работы с шаблоном Вам необходимо нажать кнопку \"Приступить к заполнению\", после чего в шаблоне отобразятся листы для заполнения."]
[null,null,null,null,"  На листе «Титульный» нужно заполнить все ячейки голубого цвета."]
[null,null,null,null,"  На листе «Ссылки на публикации» «Адрес сайта в сети интернет» вводите, не нарушая цвет ячейки /если копируете гиперссылку из браузера, то выполните двойной щелчок левой кнопки мыши по ячейке и только после этого можете вставить скопированный элемент/.\n"]
[null,null,null,null,"  При вводе даты на расчетных листах необходимо выбрать дату из календаря (иконка справа от выбранной ячейки), либо ввести дату непосредственно в ячейку в формате - 'ДД.ММ.ГГГГ'."]
[null,null,null,null,"  Если какой-либо из показателей на расчетных листах для Вашей организации отсутствует, введите в поле, обязательное для заполнение, «0» (для числовых показателей) и «-» (для текстовых).\n"]
[null,null,null,null,"  Внимательно следите за информационными сообщениями на расчетных листах."]
[null,null,null,null,"  Все необходимые комментарии по всем формам Вы можете отразить на листе «Комментарии»."]
[]
[]
[]
[null,null,null,null,"E-mail:",null,null,"openinfo@eias.ru"]
[null,null,null,null,"Web-сайт:",null,null,"http://eias.ru/?page=show_templates"]
[]
[]
[]
[]
[]
[]
[]
[]
[]
[]
[]
[]
[]
[]
[null,null,null,null,"При наличии подключения к Интернет, можно автоматически проверять наличие доступных обновлений. Выберите способ оповещения о наличии обновлений для отчёта:"]
[]
[null,null,null,null,null,"проверять доступные обновления (рекомендуется)",null,null,null,null,null,null,null,null,null,null,null,null,null,null,null,null,null,null,null,null,"y"]
[]
[null,null,null,null,null,"никогда не проверять наличие обновлений (не рекомендуется)"]

{"sheet":"Справочная информация","index":2,"n_rows":136,"n_cols":6,"rows_kept":136,"cut":false,"hidden":false,"merged":[]}
[]
[]
[]
[]
[null,null,{"$f":"\"II. Стандарты раскрытия информации в сфере \"& TSphere_full","v":"II. Стандарты раскрытия информации в сфере водоотведения"}]
[]
[null,null,"35. Регулируемой организацией подлежит раскрытию информация:",null,null," "]
[null,null,"а) о регулируемой организации (общая информация);",null,null,"  "]
[null,null,"б) о тарифах на регулируемые товары (услуги);",null,null,"  "]
[null,null,"в) об основных показателях финансово-хозяйственной деятельности регулируемой организации, включая структуру основных производственных затрат (в части регулируемой деятельности);",null,null,"  "]
[null,null,"г) об основных потребительских характеристиках регулируемых товаров и услуг регулируемой организации и их соответствии установленным требованиям;",null,null,"  "]
[null,null,"д) об инвестиционных программах регулируемой организации и отчетах об их реализации;",null,null,"  "]
[null,null,"е) о наличии (отсутствии) технической возможности подключения к централизованной системе водоотведения, а также о регистрации и ходе реализации заявок о подключении к централизованной системе водоотведения;",null,null,"  "]
[null,null,"ж) об условиях, на которых осуществляется поставка регулируемых товаров (оказание регулируемых услуг), и (или) об условиях договоров о подключении к централизованной системе водоотведения;",null,null,"  "]
[null,null,"з) о порядке выполнения технологических, технических и других мероприятий, связанных с подключением к централизованной системе водоотведения;",null,null,"  "]
[null,null,"и) о способах приобретения, стоимости и объемах товаров, необходимых для производства регулируемых товаров и (или) оказания регулируемых услуг регулируемой организации;",null,null,"  "]
[null,null,"к) о предложении регулируемой организации об установлении тарифов в сфере водоотведения.",null,null,"  "]
[]
[null,null,"36. Информация о тарифах на регулируемые товары (услуги) в сфере водоотведения содержит сведения:"]
[null,null,"а) об утвержденных тарифах на водоотведение;",null,null,"  "]
[null,null,"б) об утвержденных тарифах на транспортировку сточных вод;",null,null," "]
[null,null,"в) об утвержденных тарифах на подключение к централизованной системе водоотведения.",null,null,"  "]
[]
[null,null,"37. В отношении сведений, предусмотренных пунктом 36 настоящего документа, указывается информация:",null,null,"  "]
[null,null,"а) о наименовании органа регулирования, принявшего решение об утверждении тарифов;"]
[null,null,"б) о реквизитах (дата и номер) такого решения;",null,null,"  "]
[null,null,"в) о величине установленного тарифа;",null,null,"  "]
[null,null,"г) о сроке действия тарифа;",null,null,"  "]
[null,null,"д) об источнике официального опубликования решения.",null,null,"  "]
[]
[null,null,"38. В рамках общей информации о регулируемой организации раскрытию подлежат следующие сведения:",null,null," "]
[null,null,"а) фирменное наименование юридического лица (согласно уставу регулируемой организации), фамилия, имя и отчество руководителя регулируемой организации;",null,null,"  "]
[null,null,"б) основной государственный регистрационный номер, дата его присвоения и наименование органа, принявшего решение о регистрации в соответствии со свидетельством о государственной регистрации в качестве юридического лица;"]
[null,null,"в) почтовый адрес, адрес фактического местонахождения органов управления регулируемой организации, контактные телефоны, а также (при наличии) официальный сайт в сети \"Интернет\" и адрес электронной почты;",null,null,"  "]
[null,null,"г) режим работы регулируемой организации (абонентских отделов, сбытовых подразделений), в том числе часы работы диспетчерских служб;",null,null,"  "]
[null,null,"д) вид регулируемой деятельности;",null,null,"  "]
[null,null,"е) протяженность канализационных сетей (в однотрубном исчислении) (километров);",null,null,"  "]
[null,null,"ж) количество насосных станций и очистных сооружений (штук).",null,null,"  "]
[]
[null,null,"39. Информация об основных показателях финансово-хозяйственной деятельности регулируемой организации, включая структуру основных производственных затрат (в части регулируемой деятельности), содержит сведения:",null,null," "]
[null,null,"а) о выручке от регулируемой деятельности (тыс. рублей) с разбивкой по видам деятельности;",null,null,"  "]
[null,null,"б) о себестоимости производимых товаров (оказываемых услуг) по регулируемому виду деятельности (тыс. рублей), включая:",null,null,"  "]
[null,null,"- расходы на оплату услуг по приему, транспортировке и очистке сточных вод другими организациями;"]
[null,null,"- расходы на покупаемую электрическую энергию (мощность), используемую в технологическом процессе (с указанием средневзвешенной стоимости 1 кВт·ч), и объем приобретаемой электрической энергии;",null,null,"  "]
[null,null,"- расходы на химические реагенты, используемые в технологическом процессе;",null,null,"  "]
[null,null,"- расходы на оплату труда и отчисления на социальные нужды основного производственного персонала;",null,null,"  "]
[null,null,"- расходы на оплату труда и отчисления на социальные нужды административно-управленческого персонала;",null,null,"  "]
[null,null,"- расходы на амортизацию основных производственных средств;",null,null,"  "]
[null,null,"- расходы на аренду имущества, используемого для осуществления регулируемого вида деятельности;",null,null,"  "]
[null,null,"- общепроизводственные расходы, в том числе отнесенные к ним расходы на текущий и капитальный ремонт;",null,null,"  "]
[null,null,"- общехозяйственные расходы, в том числе отнесенные к ним расходы на текущий и капитальный ремонт;",null,null," "]
[null,null,"- расходы на капитальный и текущий ремонт основных производственных средств (в том числе информация об объемах товаров и услуг, их стоимости и способах приобретения у тех организаций, сумма оплаты услуг которых превышает 20 процентов суммы расходов по указанной статье расходов);",null,null,"  "]
[null,null,"- расходы на услуги производственного характера, оказываемые по договорам с организациями на проведение регламентных работ в рамках технологического процесса (в том числе информация об объемах товаров и услуг, их стоимости и способах приобретения у тех организаций, сумма оплаты услуг которых превышает 20 процентов суммы расходов по указанной статье расходов);",null,null,"  "]
[null,null,"- прочие расходы, которые подлежат отнесению к регулируемым видам деятельности в соответствии с основами ценообразования в сфере водоснабжения и водоотведения, утверждаемыми Правительством Российской Федерации;",null,null,"   "]
[null,null,"в) о чистой прибыли, полученной от регулируемого вида деятельности, с указанием размера ее расходования на финансирование мероприятий, предусмотренных инвестиционной программой регулируемой организации (тыс. рублей);",null,null,"   "]
[null,null,"г) о валовой прибыли от продажи товаров и услуг по регулируемому виду деятельности (тыс. рублей);",null,null,"   "]
[null,null,"д) об изменении стоимости основных фондов (в том числе за счет их ввода в эксплуатацию (вывода из эксплуатации)), их переоценки (тыс. рублей);",null,null,"   "]
[null,null,"е) об убытках от продажи товаров и услуг по регулируемому виду деятельности (тыс. рублей);",null,null,"   "]
[null,null,"ж) о годовой бухгалтерской отчетности, включая бухгалтерский баланс и приложения к нему (раскрывается регулируемой организацией, выручка от регулируемой деятельности которых превышает 80 процентов совокупной выручки за отчетный год);",null,null,"   "]
[null,null,"з) об объеме сточных вод, принятых от потребителей оказываемых услуг (тыс. куб. метров);",null,null,"   "]
[null,null,"и) об объеме сточных вод, принятых от других регулируемых организаций в сфере водоотведения и (или) очистки сточных вод (тыс. куб. метров);",null,null,"   "]
[null,null,"к) об объеме сточных вод, пропущенных через очистные сооружения (тыс. куб. метров);",null,null,"   "]
[null,null,"л) о среднесписочной численности основного производственного персонала (человек).",null,null,"   "]
[]
[null,null,"40. Информация об основных потребительских характеристиках регулируемых товаров и услуг, оказываемых регулируемой организацией, и соответствии их установленным требованиям содержит сведения:",null,null,"   "]
[null,null,"а) о показателях аварийности на канализационных сетях и количестве засоров для самотечных сетей (единиц на километр);",null,null,"   "]
[null,null,"б) об общем количестве проведенных проб на сбросе очищенных (частично очищенных) сточных вод по следующим показателям:",null,null,"  "]
[null,null,"- взвешенные вещества;",null,null,"  "]
[null,null,"- БПК5;",null,null,"  "]
[null,null,"- аммоний-ион;",null,null,"  "]
[null,null,"- нитрит-анион;",null,null,"  "]
[null,null,"- фосфаты (по P);",null,null,"  "]
[null,null,"- нефтепродукты;",null,null,"  "]
[null,null,"- микробиология;",null,null,"  "]
[null,null,"в) о количестве проведенных проб, выявивших несоответствие очищенных (частично очищенных) сточных вод санитарным нормам (предельно допустимой концентрации) на сбросе очищенных (частично очищенных) сточных вод, по следующим показателям:",null,null,"  "]
[null,null,"- взвешенные вещества;",null,null,"  "]
[null,null,"- БПК5;",null,null,"  "]
[null,null,"- аммоний-ион;",null,null,"  "]
[null,null,"- нитрит-анион;"]
[null,null,"- фосфаты (по P);",null,null,"  "]
[null,null,"- нефтепродукты;",null,null,"  "]
[null,null,"- микробиология;",null,null," "]
[null,null,"г) о доле исполненных в срок договоров о подключении (процент общего количества заключенных договоров о подключении);",null,null,"  "]
[null,null,"д) о средней продолжительности рассмотрения заявлений о подключении (дней).",null,null,"  "]
[]
[null,null,"41. Информация об инвестиционных программах регулируемой организации содержит сведения:",null,null,"  "]
[null,null,"а) о наименовании, дате утверждения и цели инвестиционной программы;",null,null,"   "]
[null,null,"б) о наименовании органа исполнительной власти субъекта Российской Федерации, утвердившего инвестиционную программу, и наименовании органа местного самоуправления, согласовавшего инвестиционную программу;",null,null,"   "]
[null,null,"в) о сроках начала и окончания реализации инвестиционной программы;",null,null,"   "]
[null,null,"г) о потребностях в финансовых средствах, необходимых для реализации инвестиционной программы, в том числе с разбивкой по годам, мероприятиям и источникам финансирования инвестиционной программы (тыс. рублей);"]
[null,null,"д) о плановых значениях целевых показателей инвестиционной программы (с разбивкой по мероприятиям);",null,null,"   "]
[null,null,"е) о фактических значениях целевых показателей инвестиционной программы (с разбивкой по мероприятиям);",null,null,"   "]
[null,null,"ж) об использовании инвестиционных средств за отчетный год с разбивкой по кварталам, мероприятиям и источникам финансирования инвестиционной программы (тыс. рублей);",null,null,"  "]
[null,null,"з) о внесении изменений в инвестиционную программу.",null,null,"   "]
[]
[null,null,"42. Информация о наличии (отсутствии) технической возможности подключения к централизованной системе водоотведения, а также о регистрации и ходе реализации заявок о подключении к централизованной системе водоотведения содержит сведения:",null,null,"   "]
[null,null,"а) о количестве поданных заявок о подключении к централизованной системе водоотведения;"]
[null,null,"б) о количестве исполненных заявок о подключении к централизованной системе водоотведения;",null,null,"   "]
[null,null,"в) о количестве заявок о подключении к централизованной системе водоотведения, по которым принято решение об отказе в подключении (с указанием причин) в течение квартала;"]
[null,null,"г) о резерве мощности централизованной системы водоотведения в течение квартала.",null,null,"   "]
[]
[null,null,"43. При использовании регулируемой организацией нескольких централизованных систем водоотведения информация о резерве мощности таких систем публикуется в отношении каждой централизованной системы водоотведения."]
[]
[null,null,"44. Информация об условиях, на которых осуществляется поставка регулируемых товаров и (или) оказание регулируемых услуг, содержит сведения об условиях публичных договоров поставок регулируемых товаров, оказания регулируемых услуг, в том числе договоров о подключении к централизованной системе водоотведения.",null,null,"   "]
[]
[null,null,"45. Информация о порядке выполнения технологических, технических и других мероприятий, связанных с подключением к централизованной системе водоотведения, содержит:",null,null,"  "]
[null,null,"а) форму заявки о подключении к централизованной системе водоотведения;",null,null,"  "]
[null,null,"б) перечень документов, представляемых одновременно с заявкой о подключении к централизованной системе водоотведения;",null,null,"  "]
[null,null,"в) реквизиты нормативного правового акта, регламентирующего порядок действий заявителя и регулируемой организации при подаче, приеме и обработке заявки о подключении к централизованной системе водоотведения, принятии решения и уведомлении о принятом решении;",null,null," "]
[null,null,"г) телефоны и адреса службы, ответственной за прием и обработку заявок о подключении к централизованной системе водоотведения."]
[]
[null,null,"46. Информация о способах приобретения, стоимости и объемах товаров, необходимых для производства регулируемых товаров и (или) оказания регулируемых услуг регулируемой организацией, содержит сведения о правовых актах, регламентирующих правила закупки (положение о закупках) в регулируемой организации, а также о месте размещения положения о закупках регулируемой организации, информации о планировании конкурсных процедур и результатах их проведения.",null,null,"  "]
[]
[null,null,"47. Информация о предложении регулируемой организации об установлении тарифов в сфере водоотведения на очередной период регулирования содержит копию утвержденной в установленном порядке инвестиционной программы (проекта инвестиционной программы), а также сведения:"]
[null,null,"а) о предлагаемом методе регулирования;",null,null,"  "]
[null,null,"б) о расчетной величине тарифов;",null,null,"  "]
[null,null,"в) о периоде действия тарифов;",null,null,"  "]
[null,null,"г) о долгосрочных параметрах регулирования (в случае если их установление предусмотрено выбранным методом регулирования);",null,null,"  "]
[null,null,"д) о необходимой валовой выручке на соответствующий период, в том числе с разбивкой по годам;",null,null,"  "]
[null,null,"е) о годовом объеме отпущенной в сеть воды;",null,null,"  "]
[null,null,"ж) о размере недополученных доходов регулируемой организации (при их наличии), исчисленном в соответствии с основами ценообразования в сфере водоснабжения и водоотведения, утверждаемыми Правительством Российской Федерации;",null,null,"  "]
[null,null,"з) о размере экономически обоснованных расходов, не учтенных при регулировании тарифов в предыдущий период регулирования (при их наличии), определенном в соответствии с основами ценообразования в сфере водоснабжения и водоотведения, утверждаемыми Правительством Российской Федерации.",null,null,"  "]
[]
[null,null,"48. Информация, указанная в пунктах 36, 44 и 45 настоящего документа, раскрывается регулируемой организацией не позднее 30 календарных дней со дня принятия решения об установлении тарифа на очередной период регулирования.",null,null," "]
[]
[null,null,"49. Информация, указанная в пунктах 39 - 41 настоящего документа, раскрывается регулируемой организацией не позднее 30 календарных дней со дня направления годового бухгалтерского баланса в налоговые органы, за исключением информации, указанной в подпункте \"з\" пункта 41 настоящего документа."]
[]
[null,null,"50. Информация, указанная в пункте 39 настоящего документа, должна соответствовать бухгалтерской отчетности за отчетный год.",null,null,"  "]
[]
[null,null,"51. Регулируемая организация, не осуществляющая сдачу годового бухгалтерского баланса в налоговые органы, информацию, указанную в пунктах 39 - 41, за исключением информации, указанной в подпункте \"з\" пункта 41 настоящего документа, раскрывает не позднее 30 календарных дней со дня истечения срока, установленного законодательством Российской Федерации для сдачи годового бухгалтерского баланса в налоговые органы."]
[]
[null,null,"52. Информация, указанная в подпункте \"з\" пункта 41 настоящего документа, раскрывается в течение 10 календарных дней со дня принятия органом исполнительной власти субъекта Российской Федерации решения о внесении изменений в инвестиционную программу.",null,null,"  "]
[]
[null,null,"53. Информация, указанная в пункте 42 настоящего документа, раскрывается регулируемой организацией ежеквартально, в течение 30 календарных дней по истечении квартала, за который раскрывается информация."]
[]
[null,null,"54. Информация, указанная в пунктах 46 и 47 настоящего документа, раскрывается организацией в течение 10 календарных дней со дня подачи ею заявления об установлении тарифов в сфере водоотведения в орган исполнительной власти субъекта Российской Федерации в области государственного регулирования тарифов (орган местного самоуправления).",null,null,"  "]

{"sheet":"Лог обновления","index":3,"n_rows":49,"n_cols":3,"rows_kept":49,"cut":false,"hidden":true,"merged":[]}
["Дата/Время","Сообщение","Статус"]
[]
["2014-01-13T11:08:58","Проверка доступных обновлений...","Информация"]
["2014-01-13T11:08:59","Доступно обновление до версии 6.1.1","Информация"]
["2014-01-13T11:08:59","Описание изменений: Версия 6.1.1 (для шаблонов версии 6.1)\n1. корректировка проверки при сохранении корректности отчетного периода на листе \"Титульный\".","Информация"]
["2014-01-13T11:08:59","Размер файла обновления: 258560 байт","Информация"]
["2014-01-13T11:09:02","Подготовка к обновлению...","Информация"]
["2014-01-13T11:09:04","Сохранение файла резервной копии: T:\\Упр. рег. в сфере КК\\Мониторинга и наблюдения в сфере КК отдел\\@Общая\\ЕИАС\\!!!! Шаблоны РЕГИОНАЛЬНЫЕ\\ГОТОВЫЕ ШАБЛОНЫ\\Раскрытие информации\\31.12.2013\\Квартал\\JKH.OPEN.INFO.QUARTER.VO.BKP..xls","Информация"]
["2014-01-13T11:09:13","Резервная копия создана: T:\\Упр. рег. в сфере КК\\Мониторинга и наблюдения в сфере КК отдел\\@Общая\\ЕИАС\\!!!! Шаблоны РЕГИОНАЛЬНЫЕ\\ГОТОВЫЕ ШАБЛОНЫ\\Раскрытие информации\\31.12.2013\\Квартал\\JKH.OPEN.INFO.QUARTER.VO.BKP..xls","Информация"]
["2014-01-13T11:09:13","Создание книги для установки обновлений...","Информация"]
["2014-01-13T11:09:14","Ошибка при инициализации обновления","Ошибка"]
["2014-01-13T11:09:22","Проверка доступных обновлений...","Информация"]
["2014-01-13T11:09:22","Доступно обновление до версии 6.1.1","Информация"]
["2014-01-13T11:09:22","Описание изменений: Версия 6.1.1 (для шаблонов версии 6.1)\n1. корректировка проверки при сохранении корректности отчетного периода на листе \"Титульный\".","Информация"]
["2014-01-13T11:09:22","Размер файла обновления: 258560 байт","Информация"]
["2014-01-13T11:09:23","Подготовка к обновлению...","Информация"]
["2014-01-13T11:09:26","Сохранение файла резервной копии: T:\\Упр. рег. в сфере КК\\Мониторинга и наблюдения в сфере КК отдел\\@Общая\\ЕИАС\\!!!! Шаблоны РЕГИОНАЛЬНЫЕ\\ГОТОВЫЕ ШАБЛОНЫ\\Раскрытие информации\\31.12.2013\\Квартал\\JKH.OPEN.INFO.QUARTER.VO.BKP..xls","Информация"]
["2014-01-13T11:09:35","Резервная копия создана: T:\\Упр. рег. в сфере КК\\Мониторинга и наблюдения в сфере КК отдел\\@Общая\\ЕИАС\\!!!! Шаблоны РЕГИОНАЛЬНЫЕ\\ГОТОВЫЕ ШАБЛОНЫ\\Раскрытие информации\\31.12.2013\\Квартал\\JKH.OPEN.INFO.QUARTER.VO.BKP..xls","Информация"]
["2014-01-13T11:09:35","Создание книги для установки обновлений...","Информация"]
["2014-01-13T11:09:45","Файл обновления загружен: T:\\Упр. рег. в сфере КК\\Мониторинга и наблюдения в сфере КК отдел\\@Общая\\ЕИАС\\!!!! Шаблоны РЕГИОНАЛЬНЫЕ\\ГОТОВЫЕ ШАБЛОНЫ\\Раскрытие информации\\31.12.2013\\Квартал\\UPDATE.JKH.OPEN.INFO.QUARTER.VO.TO.6.1.1.90.xls","Информация"]
["2014-01-13T11:09:58","Обновление завершилось удачно! Шаблон JKH.OPEN.INFO.QUARTER.VO.BKP..xls сохранен под именем 'JKH.OPEN.INFO.QUARTER.VO.BKP.(v6.1.1).xls'","Информация"]
["2014-01-13T11:11:19","Проверка доступных обновлений...","Информация"]
["2014-01-13T11:11:19","Версия шаблона 6.1.1 актуальна, обновление не требуется","Информация"]
["2014-04-22T14:39:49","Проверка доступных обновлений...","Информация"]
["2014-04-22T14:39:49","Доступно обновление до версии 6.1.2","Информация"]
["2014-04-22T14:39:49","Описание изменений: Версия 6.1.1 (только(!!!) для шаблонов версии 6.1 и выше)\n1. корректировка проверки при сохранении корректности отчетного периода на листе \"Титульный\".\n2. добавление информации о соответствие форм приказа ФСТ России № 129 от 15 мая 2013 г. на соответствующих листах.\n\n\nЕсли версия Вашего шаблона ниже 6.1, обратитесь к администратору Вашего субъекта РФ.","Информация"]
["2014-04-22T14:39:49","Размер файла обновления: 284672 байт","Информация"]
["2014-04-22T14:40:03","Подготовка к обновлению...","Информация"]
["2014-04-22T14:40:06","Сохранение файла резервной копии: C:\\Users\\Sergey.Merkurev\\Desktop\\Шаблоны 22.04.2014\\ВО\\JKH.OPEN.INFO.QUARTER.VO.BKP..xls","Информация"]
["2014-04-22T14:40:13","Резервная копия создана: C:\\Users\\Sergey.Merkurev\\Desktop\\Шаблоны 22.04.2014\\ВО\\JKH.OPEN.INFO.QUARTER.VO.BKP..xls","Информация"]
["2014-04-22T14:40:13","Создание книги для установки обновлений...","Информация"]
["2014-04-22T14:40:22","Файл обновления загружен: C:\\Users\\Sergey.Merkurev\\Desktop\\Шаблоны 22.04.2014\\ВО\\UPDATE.JKH.OPEN.INFO.QUARTER.VO.TO.6.1.2.87.xls","Информация"]
["2014-04-22T14:40:32","Обновление завершилось удачно! Шаблон JKH.OPEN.INFO.QUARTER.VO.xls сохранен под именем 'JKH.OPEN.INFO.QUARTER.VO(v6.1.2).xls'","Информация"]
["2016-10-28T17:18:47","Проверка доступных обновлений...","Информация"]
["2016-10-28T17:18:48","Версия шаблона 6.1.2 актуальна, обновление не требуется","Информация"]
["2016-10-31T15:00:02","Проверка доступных обновлений...","Информация"]
["2016-10-31T15:00:02","Версия шаблона 6.1.2 актуальна, обновление не требуется","Информация"]
["2016-11-01T10:30:36","Проверка доступных обновлений...","Информация"]
["2016-11-01T10:30:37","Версия шаблона 6.1.2 актуальна, обновление не требуется","Информация"]
["2016-11-01T14:31:07","Проверка доступных обновлений...","Информация"]
["2016-11-01T14:31:07","Версия шаблона 6.1.2 актуальна, обновление не требуется","Информация"]
["2016-11-01T17:21:16","Проверка доступных обновлений...","Информация"]
["2016-11-01T17:21:16","Версия шаблона 6.1.2 актуальна, обновление не требуется","Информация"]
["2016-11-03T00:30:48","Проверка доступных обновлений...","Информация"]
["2016-11-03T00:30:50","Версия шаблона 6.1.2 актуальна, обновление не требуется","Информация"]
["2016-11-03T10:07:13","Проверка доступных обновлений...","Информация"]
["2016-11-03T10:07:14","Версия шаблона 6.1.2 актуальна, обновление не требуется","Информация"]
["2016-11-10T12:03:27","Проверка доступных обновлений...","Информация"]
["2016-11-10T12:03:27","Версия шаблона 6.1.2 актуальна, обновление не требуется","Информация"]

{"sheet":"Титульный","index":4,"n_rows":48,"n_cols":6,"rows_kept":48,"cut":false,"hidden":false,"merged":[[4,4,4,5]]}
[]
[]
[]
[null,null,null,null,null,"01.01.2016"]
[null,null,null,null,{"$f":"\"Информация о наличии (отсутствии) технической возможности подключения к централизованной системе \"&TSphere_full&\", а также о регистрации и ходе реализации заявок о подключении к централизованной системе \"&TSphere_full","v":"Информация о наличии (отсутствии) технической возможности подключения к централизованной системе водоотведения, а также о регистрации и ходе реализации заявок о подключении к централизованной системе водоотведения"}]
[]
[null,null,null,null,"Субъект РФ","Рязанская область"]
[]
[null,null,null,null,"Публикация","На сайте регулирующего органа"]
[]
[null,null,null,null,"По желанию организации информация раскрыта в дополнительных источниках публикации?","нет"]
[]
[null,null,null,null,{"$f":"\"Тариф установлен дифференцированно по системам \"&TSphere_full&\"?\"","v":"Тариф установлен дифференцированно по системам водоотведения?"},"нет"]
[]
[null,null,null,null,"Идентификатор тарифа"]
[null,null,null,null,"Описание тарифа"]
[]
[null,null,null,null,"Единица измерения объема оказываемых услуг","тыс.куб.м/сутки"]
[]
[]
[null,null,null,null,"                         Отчётный период","IV квартал 2017"]
[]
[null,null,null,null,"Является ли данное юридическое лицо подразделением (филиалом) другой организации","да"]
[]
[null,null,null,null,"Наименование организации","ПУБЛИЧНОЕ АКЦИОНЕРНОЕ ОБЩЕСТВО \"ВТОРАЯ ГЕНЕРИРУЮЩАЯ КОМПАНИЯ ОПТОВОГО РЫНКА ЭЛЕКТРОЭНЕРГИИ\""]
[null,null,null,null,"Наименование филиала","филиал ПАО \"ОГК-2\" - Рязанская ГРЭС"]
[null,null,null,null,"ИНН","2607018122"]
[null,null,null,null,"КПП","621143001"]
[]
[null,null,null,null,"Вид деятельности","Водоотведение"]
[]
[null,null,null,null,null,"Адрес регулируемой организации"]
[null,null,null,null,"Юридический адрес","356126, КРАЙ СТАВРОПОЛЬСКИЙ, "]
[null,null,null,null,"Почтовый адрес","196140, Санкт-Петербург, Петербургское, д.66, к.1"]
[]
[null,null,null,null,null,"Руководитель"]
[null,null,null,null,"Фамилия, имя, отчество","Тимофеев Павел Вячеславович"]
[null,null,null,null,"(код) номер телефона","(49141)4-18-21"]
[]
[null,null,null,null,null,"Главный бухгалтер"]
[null,null,null,null,"Фамилия, имя, отчество","Левушкина Елена Валентиновна"]
[null,null,null,null,"(код) номер телефона","(49141)4-22-26"]
[]
[null,null,null,null,null,"Должностное лицо, ответственное за составление формы"]
[null,null,null,null,"Фамилия, имя, отчество","Яшунина Татьяна Николаевна"]
[null,null,null,null,"Должность","ведущий экономист по планированию"]
[null,null,null,null,"(код) номер телефона","8(49141)45-108"]
[null,null,null,null,"e-mail","Yashunina.Tatyana@rgr.ogk2.ru"]

{"sheet":"Список ЦСВО (не дифф)","index":5,"n_rows":15,"n_cols":13,"rows_kept":15,"cut":false,"hidden":false,"merged":[[3,3,3,8],[4,3,4,8],[14,4,14,12],[9,3,11,3],[9,4,11,4],[9,6,10,6],[9,7,10,7],[9,8,10,8],[9,9,10,9],[10,11,10,12]]}
[]
[]
[null,null,null,null,null,null,null,null,"Приложение 3 к приказу ФСТ России от 15 мая 2013 г. N 129, Форма 3.8"]
[null,null,null,{"$f":"\"Информация о наличии (отсутствии) технической возможности подключения к централизованной системе \"&TSphere_full&\" (одной или несколько), в отношении которой(-ых) установлен единый тариф*\"","v":"Информация о наличии (отсутствии) технической возможности подключения к централизованной системе водоотведения (одной или несколько), в отношении которой(-ых) установлен единый тариф*"}]
[null,null,null,"ПУБЛИЧНОЕ АКЦИОНЕРНОЕ ОБЩЕСТВО \"ВТОРАЯ ГЕНЕРИРУЮЩАЯ КОМПАНИЯ ОПТОВОГО РЫНКА ЭЛЕКТРОЭНЕРГИИ\""]
[]
[null,null,null,"№ п/п","Муниципальный район",null,"№ п/п","Муниципальное образование","ОКТМО","Количество котельных и ЦТП по данному МО","№ п/п",{"$f":"\"Наименование централизованной системы \"&TSphere_full&\" *\"","v":"Наименование централизованной системы водоотведения *"},{"$f":"\"Резерв мощности централизованной системы \"&TSphere_full&\" в течение квартала, \"&unit&\"\"","v":"Резерв мощности централизованной системы водоотведения в течение квартала, тыс.куб.м/сутки"}]
[null,null,null,"1","2",null,"3","4","5","6","6","7","8"]
[]
[null,null,"О",1,"Пронский муниципальный район",null,1,"Новомичуринское","61625114",null,"1","РГРЭС",3.29]
[null,null,null,null,null,null,null,null,null,null,null,"Добавить централизованную систему"]
[null,null,null,null,null,null,null,"Добавить МО"]
[null,null,null,null,"Добавить МР"]
[]
[null,null,null,"*","Наименование может совпадать с описанием тарифа, указанным на листе 'Титульный'"]

{"sheet":"ЦСВО доступ (не дифф)","index":6,"n_rows":18,"n_cols":6,"rows_kept":18,"cut":false,"hidden":false,"merged":[[13,4,13,5],[6,4,6,5],[17,4,17,5],[4,3,4,5],[5,3,5,5]]}
[]
[]
[]
[null,null,null,null,null,"Приложение 3 к приказу ФСТ России от 15 мая 2013 г. N 129, Форма 3.8"]
[null,null,null,{"$f":"\"Информация о регистрации и ходе реализации заявок о подключении к централизованной системе \"&TSphere_full&\"*\"","v":"Информация о регистрации и ходе реализации заявок о подключении к централизованной системе водоотведения*"}]
[null,null,null,"ПУБЛИЧНОЕ АКЦИОНЕРНОЕ ОБЩЕСТВО \"ВТОРАЯ ГЕНЕРИРУЮЩАЯ КОМПАНИЯ ОПТОВОГО РЫНКА ЭЛЕКТРОЭНЕРГИИ\""]
[]
[null,null,null,"№ п/п","Наименование показателя","Значение"]
[null,null,null,"А","1","2"]
[null,null,null,"1",{"$f":"\"Количество поданных заявок на подключение к централизованной системе \"&TSphere_full&\" в течение квартала, шт.\"","v":"Количество поданных заявок на подключение к централизованной системе водоотведения в течение квартала, шт."},0]
[null,null,null,"2",{"$f":"\"Количество исполненных заявок на подключение к централизованной системе \"&TSphere_full&\" в течение квартала, шт.\"","v":"Количество исполненных заявок на подключение к централизованной системе водоотведения в течение квартала, шт."},0]
[null,null,null,"3",{"$f":"\"Количество заявок о подключении к централизованной системе  \"&TSphere_full&\", по которым принято решение об отказе в подключении (с указанием причин) в течение квартала, шт.\"","v":"Количество заявок о подключении к централизованной системе  водоотведения, по которым принято решение об отказе в подключении (с указанием причин) в течение квартала, шт."},0]
[null,null,null,"4","Причины отказа в подключении"]
[null,null,null,"4.0"]
[null,null,null,null,"Добавить причину"]
[null,null,null,"5","Справочно: количество выданных техусловий на подключение, шт."]
[]
[null,null,null,"*","Информация раскрывается ежеквартально, в течение 30 календарных дней по истечении квартала, за который раскрывается информация."]

{"sheet":"Список ЦСВО (дифф)","index":7,"n_rows":13,"n_cols":20,"rows_kept":13,"cut":false,"hidden":true,"merged":[[11,4,11,19],[3,3,3,12],[4,3,4,12],[12,4,12,12]]}
[]
[]
[null,null,null,null,null,null,null,null,null,null,null,null,"Приложение 3 к приказу ФСТ России от 15 мая 2013 г. N 129, Форма 3.8"]
[null,null,null,{"$f":"\"Информация о наличии (отсутствии)технической возможности подключения к централизованной системе \"&TSphere_full&\", а также о регистрации и ходе реализации заявок о подключении к централизованной системе \"&TSphere_full&\"(одной или несколько), в отношении которой(-ых) установлен единый тариф*\"","v":"Информация о наличии (отсутствии)технической возможности подключения к централизованной системе водоотведения, а также о регистрации и ходе реализации заявок о подключении к централизованной системе водоотведения(одной или несколько), в отношении которой(-ых) установлен единый тариф*"}]
[null,null,null,"ПУБЛИЧНОЕ АКЦИОНЕРНОЕ ОБЩЕСТВО \"ВТОРАЯ ГЕНЕРИРУЮЩАЯ КОМПАНИЯ ОПТОВОГО РЫНКА ЭЛЕКТРОЭНЕРГИИ\""]
[]
[null,null,null,"№ п/п","Муниципальный район",null,"№ п/п","Муниципальное образование","ОКТМО","Количество котельных и ЦТП по данному МО",null,"№ п/п",{"$f":"\"Наименование централизованной системы \"&TSphere_full & \" **\"","v":"Наименование централизованной системы водоотведения **"},"Количество поданных заявок, шт.","Количество исполненных заявок, шт.","Количество заявок с решением об отказе  в подключении, шт.",null,"№ п/п","Причины отказа в подключении",{"$f":"\"Резерв мощности централизованной системы \"&TSphere_full&\" в течение квартала, \"&unit&\"\"","v":"Резерв мощности централизованной системы водоотведения в течение квартала, тыс.куб.м/сутки"}]
[null,null,null,"1","2",null,"3","4","5","6",null,"6","7","8","9","10",null,"11","12","13"]
[]
[null,null,null,null,"Добавить МР"]
[]
[null,null,null,"*",{"$f":"\"В случае если регулируемыми организациями оказываются услуги по нескольким технологически не связанным между собой централизованным системам \"&TSphere_full&\", и если в отношении указанных систем устанавливаются различные тарифы в сфере \"&TSphere_full&\", то информация раскрывается отдельно по каждой централизованной системе \"&TSphere_full&\" (для каждого такого тарифа нужно заполнять новый шаблон).\"","v":"В случае если регулируемыми организациями оказываются услуги по нескольким технологически не связанным между собой централизованным системам водоотведения, и если в отношении указанных систем устанавливаются различные тарифы в сфере водоотведения, то информация раскрывается отдельно по каждой централизованной системе водоотведения (для каждого такого тарифа нужно заполнять новый шаблон)."}]
[null,null,null,"**","Наименование может совпадать с описанием тарифа, указанным на листе 'Титульный'"]

{"sheet":"Ссылки на публикации","index":8,"n_rows":13,"n_cols":8,"rows_kept":13,"cut":false,"hidden":true,"merged":[[5,3,5,6],[10,0,11,0],[4,3,4,6],[10,4,10,7]]}
[]
[]
[]
[]
[null,null,null,"Ссылки на публикации\n(указание на официальное печатное издание и (или) адрес сайта в сети Интернет, которые используются для размещения раскрываемой информации)"]
[null,null,null,"ПУБЛИЧНОЕ АКЦИОНЕРНОЕ ОБЩЕСТВО \"ВТОРАЯ ГЕНЕРИРУЮЩАЯ КОМПАНИЯ ОПТОВОГО РЫНКА ЭЛЕКТРОЭНЕРГИИ\""]
[]
[]
[null,null,null,"№ п/п","Содержание","Наименование источника\n(сайта или печатного издания)","Дата размещения информации","Адрес сайта в сети Интернет"]
[null,null,null,"1","2","3","4","5"]
["1",null,null,{"$f":"A11","v":"1"},{"$f":"\"Информация о наличии (отсутствии) технической возможности доступа к регулируемым товарам и услугам регулируемых организаций, а также о регистрации и ходе реализации заявок на подключение к централизованой системе \"&TSphere_full","v":"Информация о наличии (отсутствии) технической возможности доступа к регулируемым товарам и услугам регулируемых организаций, а также о регистрации и ходе реализации заявок на подключение к централизованой системе водоотведения"}]
[null,null,null,{"$f":"A11&\".1\"","v":"1.1"},"Сайт организации в сети Интернет"]
[null,null,null,null,"Добавить"]

{"sheet":"Комментарии","index":9,"n_rows":13,"n_cols":5,"rows_kept":13,"cut":false,"hidden":false,"merged":[[6,3,6,4],[7,3,7,4]]}
[]
[]
[]
[]
[]
[]
[null,null,null,"Комментарии"]
[null,null,null,"ПУБЛИЧНОЕ АКЦИОНЕРНОЕ ОБЩЕСТВО \"ВТОРАЯ ГЕНЕРИРУЮЩАЯ КОМПАНИЯ ОПТОВОГО РЫНКА ЭЛЕКТРОЭНЕРГИИ\""]
[]
[null,null,null,"№ п/п","Комментарий"]
[null,null,null,"1","2"]
[null,null,null,0]
[null,null,null,null,"Добавить"]

{"sheet":"Проверка","index":10,"n_rows":4,"n_cols":4,"rows_kept":4,"cut":false,"hidden":false,"merged":[[1,1,1,3]]}
[]
[null,"Результат проверки"]
[]
[null,"Ссылка","Причина","Статус"]

{"sheet":"AllSheetsInThisWorkbook","index":11,"n_rows":25,"n_cols":2,"rows_kept":25,"cut":false,"hidden":true,"merged":[]}
["Расчетные листы","Скрытые листы"]
["Инструкция","AllSheetsInThisWorkbook"]
["Справочная информация","TEHSHEET"]
["Лог обновления","et_union_hor"]
["Титульный","et_union_vert"]
["Список ЦСВО (не дифф)","modInfo"]
["ЦСВО доступ (не дифф)","modReestr"]
["Список ЦСВО (дифф)","modfrmReestr"]
["Ссылки на публикации","modUpdTemplMain"]
["Комментарии","REESTR_ORG"]
["Проверка","modClassifierValidate"]
[null,"modProv"]
[null,"modHyp"]
[null,"modList00"]
[null,"modList01"]
[null,"modList02"]
[null,"modList03"]
[null,"modList04"]
[null,"modfrmDateChoose"]
[null,"modComm"]
[null,"modThisWorkbook"]
[null,"REESTR_MO"]
[null,"modfrmReestrMR"]
[null,"modfrmRegion"]
[null,"modfrmCheckUpdates"]

{"sheet":"TEHSHEET","index":12,"n_rows":85,"n_cols":13,"rows_kept":85,"cut":false,"hidden":true,"merged":[]}
["REGION",null,"year_list","logical","Месяц\n(MONTH)","Квартал\n(QUARTER)","Месяц\n(kind_of_publication)","НДС\n/kind_of_NDS/","Номер СЦХВ(СЦВО)\n/SKI_number/","Единица измерения объема оказываемых услуг ГВС\n/kind_of_unit_GVS/",null,"версия шаблона\n (DocProp_Version)","6.1"]
["Алтайский край",null,2013,"да","январь","I квартал","На официальном сайте организации","общий","1","тыс.куб.м/сутки",null,"код шаблона\n(DocProp_TemplateCode)","JKH.OPEN.INFO.QUARTER.VO"]
["Амурская область",null,2014,"нет","февраль","II квартал","На сайте регулирующего органа","общий с учетом освобождения от уплаты НДС","2","тыс.куб.м/час",null,"сфера\n(TSphere)","ВО"]
["Архангельская область",null,2015,null,"март","III квартал",null,"специальный (упрощенная система налогообложения, система налогообложения для сельскохозяйственных товаропроизводителей)","3",null,null,"сфера(латиница)\n(TSphere_trans)","VO"]
["Астраханская область",null,2016,null,"апрель","IV квартал",null,null,"4",null,null,"сфера расширено\n(TSphere_full)","водоотведения"]
["Белгородская область",null,2017,null,"май",null,null,null,"5"]
["Брянская область",null,null,null,"июнь",null,null,null,"6"]
["Владимирская область",null,null,null,"июль",null,null,null,"7"]
["Волгоградская область",null,null,null,"август",null,null,null,"8"]
["Вологодская область",null,null,null,"сентябрь",null,null,null,"9"]
["Воронежская область",null,null,null,"октябрь",null,null,null,"10"]
["г.Байконур",null,null,null,"ноябрь",null,null,null,"11"]
["г. Москва",null,null,null,"декабрь",null,null,null,"12"]
["г.Санкт-Петербург",null,null,null,null,null,null,null,"13"]
["Еврейская автономная область",null,null,null,null,null,null,null,"14"]
["Забайкальский край",null,null,null,null,null,null,null,"15"]
["Ивановская область",null,null,null,null,null,null,null,"16"]
["Иркутская область",null,null,null,null,null,null,null,"17"]
["Кабардино-Балкарская республика",null,null,null,null,null,null,null,"18"]
["Калининградская область",null,null,null,null,null,null,null,"19"]
["Калужская область",null,null,null,null,null,null,null,"20"]
["Камчатский край"]
["Карачаево-Черкесская республика"]
["Кемеровская область"]
["Кировская область"]
["Костромская область"]
["Краснодарский край"]
["Красноярский край"]
["Курганская область"]
["Курская область"]
["Ленинградская область"]
["Липецкая область"]
["Магаданская область"]
["Московская область"]
["Мурманская область"]
["Ненецкий автономный округ"]
["Нижегородская область"]
["Новгородская область"]
["Новосибирская область"]
["Омская область"]
["Оренбургская область"]
["Орловская область"]
["Пензенская область"]
["Пермский край"]
["Приморский край"]
["Псковская область"]
["Республика Адыгея"]
["Республика Алтай"]
["Республика Башкортостан"]
["Республика Бурятия"]
["Республика Дагестан"]
["Республика Ингушетия"]
["Республика Калмыкия"]
["Республика Карелия"]
["Республика Коми"]
["Республика Марий Эл"]
["Республика Мордовия"]
["Республика Саха (Якутия)"]
["Республика Северная Осетия-Алания"]
["Республика Татарстан"]
["Республика Тыва"]
["Республика Хакасия"]
["Ростовская область"]
["Рязанская область"]
["Самарская область"]
["Саратовская область"]
["Сахалинская область"]
["Свердловская область"]
["Смоленская область"]
["Ставропольский край"]
["Тамбовская область"]
["Тверская область"]
["Томская область"]
["Тульская область"]
["Тюменская область"]
["Удмуртская республика"]
["Ульяновская область"]
["Хабаровский край"]
["Ханты-Мансийский автономный округ"]
["Челябинская область"]
["Чеченская республика"]
["Чувашская республика"]
["Чукотский автономный округ"]
["Ямало-Ненецкий автономный округ"]
["Ярославская область"]

{"sheet":"et_union_hor","index":13,"n_rows":35,"n_cols":19,"rows_kept":35,"cut":false,"hidden":true,"merged":[[31,19,32,19],[31,13,32,13],[31,14,32,14],[31,15,32,15],[4,11,4,12],[31,12,32,12],[31,3,34,3],[31,4,34,4],[31,6,33,6],[31,7,33,7],[31,8,33,8],[31,9,33,9],[31,11,32,11],[3,8,4,8],[3,9,4,9],[3,7,4,7],[16,0,17,0],[3,4,5,4],[3,3,5,3],[23,4,23,5],[3,6,4,6],[16,4,16,7]]}
[]
["et_List01_1","et_List01_2","et_List01_3"]
[]
[null,null,null,1,null,null,1,null,null,null,"1"]
[null,null,null,null,null,null,null,null,null,null,null,"Добавить централизованную систему"]
[null,null,null,null,null,null,null,"Добавить МО"]
[]
[]
["et_Comm"]
[]
[]
[]
[]
["et_List03"]
[]
[]
[null,null,null,{"$f":"A17","v":0}]
[null,null,null,{"$f":"A17&\".1\"","v":".1"},"Сайт организации в сети Интернет"]
[]
[]
[]
["et_List02_1"]
[]
[]
[]
["et_List02_2"]
[]
[]
[]
["et_List04_1","et_List04_2","et_List04_3"]
[]
[null,null,null,1,null,null,1,null,null,null,null,"1",null,null,null,null,null,"1"]
[null,null,null,null,null,null,null,null,null,null,null,null,null,null,null,null,null,null,"Добавить причину"]
[null,null,null,null,null,null,null,null,null,null,null,null,"Добавить централизованную систему"]
[null,null,null,null,null,null,null,"Добавить МО"]

{"sheet":"et_union_vert","index":14,"n_rows":0,"n_cols":0,"rows_kept":0,"cut":false,"hidden":true,"merged":[]}

{"sheet":"modInfo","index":15,"n_rows":11,"n_cols":2,"rows_kept":11,"cut":false,"hidden":true,"merged":[]}
[null,"Титульный"]
[null,"Для выбора того или иного источника публикации выполните двойной щелчок по синей ячейке напротив соответствующего источника.\nВНИМАНИЕ! Если Вы снимаете галочку с пункта, то будут скрыты и очищены соответствующие строки на листе \"Ссылки на публикации\"!\n\nОпубликование перечисленных в шаблоне показателей на сайте организации в сети Интернет и в печатных изданиях не обязательно, если  данный шаблон предоставлен по системе ЕИАС (региональный сегмент)."]
[null,"Обязательное опубликование на официальном сайте органа исполнительной власти субъекта Российской Федерации в области государственного регулирования тарифов (на официальном сайте органа местного самоуправления поселения или городского округа в случае передачи законом субъекта Российской Федерации полномочий по утверждению тарифов в сфере водоснабжения и водоотведения органам местного самоуправления) предусмотрено пунктом 3 (а) постановления Правительства №6 от 17.01.2013"]
[null,"Задайте период регулирования, выбрав квартал и год из соответствующих списков"]
[null,"Шаблон заполняется раздельно по каждому виду тарифа"]
[null,{"$f":"\"Укажите произвольный номер идентификатора тарифа для централизованных систем \"&TSphere_full&\", которые включены в шаблон. В каждом последующем шаблоне за один отчетный период следует указывать различные идентификаторы тарифа\"","v":"Укажите произвольный номер идентификатора тарифа для централизованных систем водоотведения, которые включены в шаблон. В каждом последующем шаблоне за один отчетный период следует указывать различные идентификаторы тарифа"}]
[null,"Кратко охарактеризуйте тариф, в отношении которого заполняете шаблон"]
[null,"Ссылки на публикации"]
[null,"Вводите адрес сайта, не нарушая цвет ячейки /если копируете гиперссылку из браузера, то выполните двойной щелчок по ячейке и только после этого можете вставить скопированный элемент/"]
[null,"Список ЦСВО"]
[null,"Централизованная система водоотведения (канализации) - комплекс технологически связанных между собой инженерных сооружений, предназначенных для водоотведения (Федеральный закон от 07.12.2011 N 416-ФЗ \"О водоснабжении и водоотведении\", ст.2, п. 28)"]

{"sheet":"modReestr","index":16,"n_rows":0,"n_cols":0,"rows_kept":0,"cut":false,"hidden":true,"merged":[]}

{"sheet":"modfrmReestr","index":17,"n_rows":0,"n_cols":0,"rows_kept":0,"cut":false,"hidden":true,"merged":[]}

{"sheet":"modUpdTemplMain","index":18,"n_rows":0,"n_cols":0,"rows_kept":0,"cut":false,"hidden":true,"merged":[]}

{"sheet":"REESTR_ORG","index":19,"n_rows":1,"n_cols":11,"rows_kept":1,"cut":false,"hidden":true,"merged":[]}
["№","NSRF","MR_NAME","OKTMO_MR_NAME","MO_NAME","OKTMO_NAME","RST_ORG_ID","ORG_NAME","INN_NAME","KPP_NAME","VDET_NAME"]

{"sheet":"modClassifierValidate","index":20,"n_rows":0,"n_cols":0,"rows_kept":0,"cut":false,"hidden":true,"merged":[]}

{"sheet":"modHyp","index":21,"n_rows":0,"n_cols":0,"rows_kept":0,"cut":false,"hidden":true,"merged":[]}

{"sheet":"modList00","index":22,"n_rows":0,"n_cols":0,"rows_kept":0,"cut":false,"hidden":true,"merged":[]}

{"sheet":"modList01","index":23,"n_rows":0,"n_cols":0,"rows_kept":0,"cut":false,"hidden":true,"merged":[]}

{"sheet":"modList02","index":24,"n_rows":0,"n_cols":0,"rows_kept":0,"cut":false,"hidden":true,"merged":[]}

{"sheet":"modList03","index":25,"n_rows":0,"n_cols":0,"rows_kept":0,"cut":false,"hidden":true,"merged":[]}

{"sheet":"modList04","index":26,"n_rows":0,"n_cols":0,"rows_kept":0,"cut":false,"hidden":true,"merged":[]}

{"sheet":"modfrmDateChoose","index":27,"n_rows":0,"n_cols":0,"rows_kept":0,"cut":false,"hidden":true,"merged":[]}

{"sheet":"modComm","index":28,"n_rows":0,"n_cols":0,"rows_kept":0,"cut":false,"hidden":true,"merged":[]}

{"sheet":"modThisWorkbook","index":29,"n_rows":0,"n_cols":0,"rows_kept":0,"cut":false,"hidden":true,"merged":[]}

{"sheet":"REESTR_MO","index":30,"n_rows":296,"n_cols":4,"rows_kept":296,"cut":false,"hidden":true,"merged":[]}
["№","МР","МО","МО_ОКТМО"]
[1,"Александро-Невский муниципальный район","Александро-Невский муниципальный район",61620000]
[2,"Александро-Невский муниципальный район","Александро-Невское",61620151]
[3,"Александро-Невский муниципальный район","Благовское",61620405]
[4,"Александро-Невский муниципальный район","Борисовское",61620410]
[5,"Александро-Невский муниципальный район","Каширинское",61620450]
[6,"Александро-Невский муниципальный район","Нижнеякимецкое",61620445]
[7,"Александро-Невский муниципальный район","Просеченское",61620460]
[8,"Город Касимов","Город Касимов",61705000]
[9,"Город Рязань","Город Рязань",61701000]
[10,"Город Сасово","Город Сасово",61710000]
[11,"Город Скопин","Город Скопин",61715000]
[12,"Ермишинский муниципальный район","Азеевское",61602405]
[13,"Ермишинский муниципальный район","Ермишинский муниципальный район",61602000]
[14,"Ермишинский муниципальный район","Ермишинское",61602151]
[15,"Ермишинский муниципальный район","Мердушинское",61602425]
[16,"Ермишинский муниципальный район","Надежкинское",61602430]
[17,"Ермишинский муниципальный район","Нарминское",61602435]
[18,"Ермишинский муниципальный район","Савватемское",61602440]
[19,"Захаровский муниципальный район","Безлыченское",61604412]
[20,"Захаровский муниципальный район","Большекоровинское",61604415]
[21,"Захаровский муниципальный район","Добро-Пчельское",61604430]
[22,"Захаровский муниципальный район","Елинское",61604432]
[23,"Захаровский муниципальный район","Захаровский муниципальный район",61604000]
[24,"Захаровский муниципальный район","Захаровское",61604440]
[25,"Захаровский муниципальный район","Плахинское",61604465]
[26,"Захаровский муниципальный район","Сменовское",61604425]
[27,"Кадомский муниципальный район","Восходское",61606405]
[28,"Кадомский муниципальный район","Енкаевское",61606410]
[29,"Кадомский муниципальный район","Кадомский муниципальный район",61606000]
[30,"Кадомский муниципальный район","Кадомское",61606151]
[31,"Кадомский муниципальный район","Котелинское",61606420]
[32,"Кадомский муниципальный район","Кущапинское",61606430]
[33,"Касимовский муниципальный район","Ардабьевское",61608403]
[34,"Касимовский муниципальный район","Ахматовское",61608406]
[35,"Касимовский муниципальный район","Булгаковское",61608439]
[36,"Касимовский муниципальный район","Гиблицкое",61608418]
[37,"Касимовский муниципальный район","Гусевское",61608154]
[38,"Касимовский муниципальный район","Дмитриевское",61608421]
[39,"Касимовский муниципальный район","Елатомское",61608156]
[40,"Касимовский муниципальный район","Ермоловское",61608424]
[41,"Касимовский муниципальный район","Ибердусское",61608430]
[42,"Касимовский муниципальный район","Касимовский муниципальный район",61608000]
[43,"Касимовский муниципальный район","Китовское",61608433]
[44,"Касимовский муниципальный район","Клетинское",61608434]
[45,"Касимовский муниципальный район","Которовское",61608442]
[46,"Касимовский муниципальный район","Крутоярское",61608453]
[47,"Касимовский муниципальный район","Лашманское",61608454]
[48,"Касимовский муниципальный район","Лощининское",61608471]
[49,"Касимовский муниципальный район","Новодеревенское",61608456]
[50,"Касимовский муниципальный район","Овчинниковское",61608459]
[51,"Касимовский муниципальный район","Первинское",61608462]
[52,"Касимовский муниципальный район","Погостинское",61608465]
[53,"Касимовский муниципальный район","Савостьяновское",61608468]
[54,"Касимовский муниципальный район","Сынтульское",61608160]
[55,"Касимовский муниципальный район","Токаревское",61608474]
[56,"Касимовский муниципальный район","Торбаевское",61608412]
[57,"Касимовский муниципальный район","Шостьинское",61608480]
[58,"Клепиковский муниципальный район","Алексеевское",61610403]
[59,"Клепиковский муниципальный район","Болоньское",61610415]
[60,"Клепиковский муниципальный район","Бусаевское",61610418]
[61,"Клепиковский муниципальный район","Екшурское",61610451]
[62,"Клепиковский муниципальный район","Клепиковский муниципальный район",61610000]
[63,"Клепиковский муниципальный район","Колесниковское",61610448]
[64,"Клепиковский муниципальный район","Криушинское",61610454]
[65,"Клепиковский муниципальный район","Молькинское",61610475]
[66,"Клепиковский муниципальный район","Ненашкинское",61610487]
[67,"Клепиковский муниципальный район","Оськинское",61610472]
[68,"Клепиковский муниципальный район","Спас-Клепиковское",61610101]
[69,"Клепиковский муниципальный район","Тумское",61610154]
[70,"Клепиковский муниципальный район","Уткинское",61610421]
[71,"Кораблинский муниципальный район","Бобровинское",61612408]
[72,"Кораблинский муниципальный район","Кипчаковское",61612424]
[73,"Кораблинский муниципальный район","Ключанское",61612428]
[74,"Кораблинский муниципальный район","Ковалинское",61612432]
[75,"Кораблинский муниципальный район","Кораблинский муниципальный район",61612000]
[76,"Кораблинский муниципальный район","Кораблинское",61612101]
[77,"Кораблинский муниципальный район","Молвинослободское",61612456]
[78,"Кораблинский муниципальный район","Незнановское",61612448]
[79,"Кораблинский муниципальный район","Пехлецкое",61612460]
[80,"Кораблинский муниципальный район","Пустотинское",61612464]
[81,"Кораблинский муниципальный район","Яблоневское",61612484]
[82,"Милославский муниципальный район","Богородицкое",61615408]
[83,"Милославский муниципальный район","Большеподовечинское",61615412]
[84,"Милославский муниципальный район","Горняцкое",61615422]
[85,"Милославский муниципальный район","Кочуровское",61615428]
[86,"Милославский муниципальный район","Липяговское",61615432]
[87,"Милославский муниципальный район","Милославский муниципальный район",61615000]
[88,"Милославский муниципальный район","Павловское",61615456]
[89,"Милославский муниципальный район","Центральное",61615160]
[90,"Милославский муниципальный район","Чернавское",61615472]
[91,"Милославский муниципальный район","городское поселение Милославское",61615151]
[92,"Милославский муниципальный район","сельское поселение Милославское",61615444]
[93,"Михайловский муниципальный район","Виленское",61617406]
[94,"Михайловский муниципальный район","Голдинское",61617412]
[95,"Михайловский муниципальный район","Горностаевское",61617415]
[96,"Михайловский муниципальный район","Грязновское",61617418]
[97,"Михайловский муниципальный район","Жмуровское",61617421]
[98,"Михайловский муниципальный район","Ильичевское",61617476]
[99,"Михайловский муниципальный район","Каморинское",61617433]
[100,"Михайловский муниципальный район","Красновское",61617439]
[101,"Михайловский муниципальный район","Михайловский муниципальный район",61617000]
[102,"Михайловский муниципальный район","Михайловское",61617101]
[103,"Михайловский муниципальный район","Новопанское",61617448]
[104,"Михайловский муниципальный район","Октябрьское",61617154]
[105,"Михайловский муниципальный район","Печерниковское",61617451]
[106,"Михайловский муниципальный район","Поярковское",61617457]
[107,"Михайловский муниципальный район","Рачатниковское",61617460]
[108,"Михайловский муниципальный район","Слободское",61617467]
[109,"Михайловский муниципальный район","Стрелецко-Высельское",61617470]
[110,"Михайловский муниципальный район","Трепольское",61617473]
[111,"Михайловский муниципальный район","Чуриковское",61617485]
[112,"Михайловский муниципальный район","Щетининское",61617491]
[113,"Пителинский муниципальный район","Ермо-Николаевское",61623420]
[114,"Пителинский муниципальный район","Нестеровское",61623425]
[115,"Пителинский муниципальный район","Пеньковское",61623435]
[116,"Пителинский муниципальный район","Пителинский муниципальный район",61623000]
[117,"Пителинский муниципальный район","Пителинское",61623151]
[118,"Пителинский муниципальный район","Потапьевское",61623450]
[119,"Пронский муниципальный район","Малинищинское",61625435]
[120,"Пронский муниципальный район","Мамоновское",61625440]
[121,"Пронский муниципальный район","Новомичуринское",61625114]
[122,"Пронский муниципальный район","Октябрьское",61625445]
[123,"Пронский муниципальный район","Орловское",61625450]
[124,"Пронский муниципальный район","Погореловское",61625455]
[125,"Пронский муниципальный район","Пронский муниципальный район",61625000]
[126,"Пронский муниципальный район","Пронское",61625151]
[127,"Пронский муниципальный район","Тырновское",61625405]
[128,"Путятинский муниципальный район","Береговское",61626406]
[129,"Путятинский муниципальный район","Большеекатериновское",61626403]
[130,"Путятинский муниципальный район","Карабухинское",61626424]
[131,"Путятинский муниципальный район","Песочинское",61626432]
[132,"Путятинский муниципальный район","Путятинский муниципальный район",61626000]
[133,"Путятинский муниципальный район","Путятинское",61626436]
[134,"Путятинский муниципальный район","Строевское",61626412]
[135,"Рыбновский муниципальный район","Алешинское",61627404]
[136,"Рыбновский муниципальный район","Баграмовское",61627406]
[137,"Рыбновский муниципальный район","Батуринское",61627408]
[138,"Рыбновский муниципальный район","Вакинское",61627416]
[139,"Рыбновский муниципальный район","Глебковское",61627418]
[140,"Рыбновский муниципальный район","Истобниковское",61627424]
[141,"Рыбновский муниципальный район","Кузьминское",61627436]
[142,"Рыбновский муниципальный район","Пионерское",61627476]
[143,"Рыбновский муниципальный район","Пощуповское",61627456]
[144,"Рыбновский муниципальный район","Рыбновский муниципальный район",61627000]
[145,"Рыбновский муниципальный район","Рыбновское",61627101]
[146,"Рыбновский муниципальный район","Селецкое",61627460]
[147,"Рыбновский муниципальный район","Ходынинское",61627472]
[148,"Рыбновский муниципальный район","Чурилковское",61627464]
[149,"Ряжский муниципальный район","Алешинское",61630405]
[150,"Ряжский муниципальный район","Дегтянское",61630415]
[151,"Ряжский муниципальный район","Журавинское",61630420]
[152,"Ряжский муниципальный район","Петровское",61630450]
[153,"Ряжский муниципальный район","Поплевинское",61630460]
[154,"Ряжский муниципальный район","Ряжский муниципальный район",61630000]
[155,"Ряжский муниципальный район","Ряжское",61630101]
[156,"Рязанский муниципальный район","Варсковское",61634402]
[157,"Рязанский муниципальный район","Высоковское",61634409]
[158,"Рязанский муниципальный район","Вышгородское",61634412]
[159,"Рязанский муниципальный район","Дубровическое",61634427]
[160,"Рязанский муниципальный район","Дядьковское",61634430]
[161,"Рязанский муниципальный район","Екимовское",61634433]
[162,"Рязанский муниципальный район","Заборьевское",61634436]
[163,"Рязанский муниципальный район","Заокское",61634439]
[164,"Рязанский муниципальный район","Искровское",61634485]
[165,"Рязанский муниципальный район","Листвянское",61634457]
[166,"Рязанский муниципальный район","Льговское",61634460]
[167,"Рязанский муниципальный район","Мурминское",61634401]
[168,"Рязанский муниципальный район","Окское",61634475]
[169,"Рязанский муниципальный район","Подвязьевское",61634478]
[170,"Рязанский муниципальный район","Полянское",61634483]
[171,"Рязанский муниципальный район","Рязанский муниципальный район",61634000]
[172,"Рязанский муниципальный район","Семеновское",61634495]
[173,"Рязанский муниципальный район","Турлатовское",61634496]
[174,"Рязанский муниципальный район","Тюшевское",61634498]
[175,"Сапожковский муниципальный район","Березниковское",61637435]
[176,"Сапожковский муниципальный район","Канинское",61637410]
[177,"Сапожковский муниципальный район","Михеевское",61637405]
[178,"Сапожковский муниципальный район","Морозово-Борковское",61637430]
[179,"Сапожковский муниципальный район","Сапожковский муниципальный район",61637000]
[180,"Сапожковский муниципальный район","Сапожковское",61637151]
[181,"Сараевский муниципальный район","Алексеевское",61640403]
[182,"Сараевский муниципальный район","Борецкое",61640412]
[183,"Сараевский муниципальный район","Бычковское",61640415]
[184,"Сараевский муниципальный район","Высоковское",61640424]
[185,"Сараевский муниципальный район","Желобовское",61640430]
[186,"Сараевский муниципальный район","Кривское",61640436]
[187,"Сараевский муниципальный район","Можарское",61640442]
[188,"Сараевский муниципальный район","Муравлянское",61640448]
[189,"Сараевский муниципальный район","Напольновское",61640451]
[190,"Сараевский муниципальный район","Новобокинское",61640454]
[191,"Сараевский муниципальный район","Сараевский муниципальный район",61640000]
[192,"Сараевский муниципальный район","Сараевское",61640151]
[193,"Сараевский муниципальный район","Сысоевское",61640469]
[194,"Сараевский муниципальный район","Телятниковское",61640472]
[195,"Сараевский муниципальный район","Ягодновское",61640481]
[196,"Сасовский муниципальный район","Агломазовское",61642403]
[197,"Сасовский муниципальный район","Алешинское",61642406]
[198,"Сасовский муниципальный район","Батьковское",61642415]
[199,"Сасовский муниципальный район","Берестянское",61642408]
[200,"Сасовский муниципальный район","Гавриловское",61642418]
[201,"Сасовский муниципальный район","Глядковское",61642420]
[202,"Сасовский муниципальный район","Демушкинское",61642466]
[203,"Сасовский муниципальный район","Каргашинское",61642424]
[204,"Сасовский муниципальный район","Кустаревское",61642433]
[205,"Сасовский муниципальный район","Малостуденецкое",61642439]
[206,"Сасовский муниципальный район","Нижнемальцевское",61642448]
[207,"Сасовский муниципальный район","Новоберезовское",61642454]
[208,"Сасовский муниципальный район","Придорожное",61642464]
[209,"Сасовский муниципальный район","Сасовский муниципальный район",61642000]
[210,"Сасовский муниципальный район","Сотницынское",61642470]
[211,"Сасовский муниципальный район","Трудолюбовское",61642463]
[212,"Скопинский муниципальный район","Вослебовское",61644412]
[213,"Скопинский муниципальный район","Горловское",61644415]
[214,"Скопинский муниципальный район","Ильинское",61644430]
[215,"Скопинский муниципальный район","Корневское",61644445]
[216,"Скопинский муниципальный район","Павелецкое",61644154]
[217,"Скопинский муниципальный район","Побединское",61644157]
[218,"Скопинский муниципальный район","Полянское",61644478]
[219,"Скопинский муниципальный район","Скопинский муниципальный район",61644000]
[220,"Скопинский муниципальный район","Успенское",61644488]
[221,"Скопинский муниципальный район","Шелемишевское",61644496]
[222,"Спасский муниципальный район","Выжелесское",61646409]
[223,"Спасский муниципальный район","Гавриловское",61646415]
[224,"Спасский муниципальный район","Заречинское",61646434]
[225,"Спасский муниципальный район","Ижевское",61646443]
[226,"Спасский муниципальный район","Исадское",61646446]
[227,"Спасский муниципальный район","Кирицкое",61646452]
[228,"Спасский муниципальный район","Киструсское",61646488]
[229,"Спасский муниципальный район","Кутуковское",61646455]
[230,"Спасский муниципальный район","Лакашинское",61646458]
[231,"Спасский муниципальный район","Михальское",61646461]
[232,"Спасский муниципальный район","Панинское",61646473]
[233,"Спасский муниципальный район","Перкинское",61646476]
[234,"Спасский муниципальный район","Собчаковское",61646485]
[235,"Спасский муниципальный район","Спасск-Рязанское",61646101]
[236,"Спасский муниципальный район","Спасский муниципальный район",61646000]
[237,"Спасский муниципальный район","Троицкое",61646493]
[238,"Спасский муниципальный район","Федотьевское",61646498]
[239,"Старожиловский муниципальный район","Гребневское",61648420]
[240,"Старожиловский муниципальный район","Гулынское",61648425]
[241,"Старожиловский муниципальный район","Истьинское",61648435]
[242,"Старожиловский муниципальный район","Ленинское",61648438]
[243,"Старожиловский муниципальный район","Мелекшинское",61648440]
[244,"Старожиловский муниципальный район","Старожиловский муниципальный район",61648000]
[245,"Старожиловский муниципальный район","Старожиловское",61648151]
[246,"Старожиловский муниципальный район","Столпянское",61648460]
[247,"Ухоловский муниципальный район","Калининское",61650430]
[248,"Ухоловский муниципальный район","Коноплинское",61650440]
[249,"Ухоловский муниципальный район","Ольховское",61650450]
[250,"Ухоловский муниципальный район","Смолеевское",61650455]
[251,"Ухоловский муниципальный район","Ухоловский муниципальный район",61650000]
[252,"Ухоловский муниципальный район","Ухоловское",61650151]
[253,"Чучковский муниципальный район","Аладьинское",61653405]
[254,"Чучковский муниципальный район","Завидовское",61653420]
[255,"Чучковский муниципальный район","Остро-Пластиковское",61653435]
[256,"Чучковский муниципальный район","Пертовское",61653440]
[257,"Чучковский муниципальный район","Ункосовское",61653450]
[258,"Чучковский муниципальный район","Чучковский муниципальный район",61653000]
[259,"Чучковский муниципальный район","Чучковское",61653151]
[260,"Шацкий муниципальный район","Агишевское",61656406]
[261,"Шацкий муниципальный район","Борковское",61656415]
[262,"Шацкий муниципальный район","Желанновское",61656418]
[263,"Шацкий муниципальный район","Каверинское",61656421]
[264,"Шацкий муниципальный район","Казачинское",61656427]
[265,"Шацкий муниципальный район","Кермисинское",61656433]
[266,"Шацкий муниципальный район","Куплинское",61656439]
[267,"Шацкий муниципальный район","Кучасьевское",61656442]
[268,"Шацкий муниципальный район","Лесно-Конобеевское",61656445]
[269,"Шацкий муниципальный район","Лесно-Полянское",61656448]
[270,"Шацкий муниципальный район","Новочернеевское",61656451]
[271,"Шацкий муниципальный район","Ольховское",61656454]
[272,"Шацкий муниципальный район","Печинское",61656457]
[273,"Шацкий муниципальный район","Польно-Ялтуновское",61656463]
[274,"Шацкий муниципальный район","Чернослободское",61656484]
[275,"Шацкий муниципальный район","Шацкий муниципальный район",61656000]
[276,"Шацкий муниципальный район","Шацкое",61656101]
[277,"Шацкий муниципальный район","Ямбирнское",61656493]
[278,"Шиловский муниципальный район","Аделинское",61658403]
[279,"Шиловский муниципальный район","Борковское",61658475]
[280,"Шиловский муниципальный район","Боровское",61658415]
[281,"Шиловский муниципальный район","Ерахтурское",61658424]
[282,"Шиловский муниципальный район","Желудевское",61658427]
[283,"Шиловский муниципальный район","Задубровское",61658430]
[284,"Шиловский муниципальный район","Занино-Починковское",61658445]
[285,"Шиловский муниципальный район","Ибредское",61658473]
[286,"Шиловский муниципальный район","Инякинское",61658436]
[287,"Шиловский муниципальный район","Краснохолмское",61658439]
[288,"Шиловский муниципальный район","Лесновское",61658157]
[289,"Шиловский муниципальный район","Мосоловское",61658448]
[290,"Шиловский муниципальный район","Санское",61658472]
[291,"Шиловский муниципальный район","Тереховское",61658478]
[292,"Шиловский муниципальный район","Тимошкинское",61658481]
[293,"Шиловский муниципальный район","Тырновское",61658484]
[294,"Шиловский муниципальный район","Шиловский муниципальный район",61658000]
[295,"Шиловский муниципальный район","Шиловское",61658151]

{"sheet":"modfrmReestrMR","index":31,"n_rows":0,"n_cols":0,"rows_kept":0,"cut":false,"hidden":true,"merged":[]}

{"sheet":"modfrmRegion","index":32,"n_rows":0,"n_cols":0,"rows_kept":0,"cut":false,"hidden":true,"merged":[]}

{"sheet":"modfrmCheckUpdates","index":33,"n_rows":0,"n_cols":0,"rows_kept":0,"cut":false,"hidden":true,"merged":[]}